bitfinex-derivatives/quotes_BTCF0:USTF0_20250211
["timestamp","ask_amount","ask_price","bid_price","bid_amount"]
[1739291563161,0.2608,96622.0,96612.0,0.00068]
[1739291563367,0.5678031,96613.0,96611.0,0.2070054]
[1739291563662,0.3608,96613.0,96611.0,0.2070054]
[1739291565259,0.3678,96613.0,96611.0,0.2080054]
[1739291565661,0.3678,96613.0,96602.0,0.00015525]
[1739291565863,0.3608,96603.0,96602.0,0.00015525]
[1739291566263,0.5973,96603.0,96602.0,0.00015525]
[1739291567271,0.5233,96603.0,96602.0,0.00015525]
[1739291567971,0.5233,96603.0,96602.0,0.20718015]
[1739291568171,0.4421,96603.0,96602.0,0.20718015]
[1739291568464,0.07584,96607.0,96606.0,0.2070163]
[1739291569068,0.007,96613.0,96612.0,0.2070034]
[1739291569365,0.3608,96614.0,96602.0,0.36195525]
[1739291569570,0.3608,96614.0,96610.0,0.2070064]
[1739291569571,0.1505,96612.0,96610.0,0.2070064]
[1739291569766,0.2294,96612.0,96610.0,0.2070064]
[1739291571165,0.2294,96612.0,96606.0,0.001]
[1739291571369,0.2070059,96611.0,96606.0,0.2080158]
[1739291571567,0.2070059,96611.0,96607.0,0.2070136]
[1739291572173,0.2070135,96608.0,96602.0,0.00115525]
[1739291572468,0.2070135,96608.0,96603.0,0.2070227]
[1739291572469,0.3608,96605.0,96603.0,0.2070227]
[1739291572676,0.2070218,96604.0,96602.0,0.00015525]
[1739291573070,0.3608,96605.0,96603.0,0.2070222]
[1739291574467,0.3678,96605.0,96603.0,0.2080222]
[1739291575374,0.5748195,96605.0,96603.0,0.2080222]
[1739291576074,0.5748195,96605.0,96604.0,0.2070206]
[1739291576268,0.5748195,96605.0,96604.0,0.20706612]
[1739291577375,0.5748195,96605.0,96577.0,0.00068]
[1739291577376,0.37946103,96605.0,96577.0,0.00068]
[1739291577572,0.2070399,96595.0,96593.0,0.2070441]
[1739291577769,0.2070399,96595.0,96577.0,0.0517694]
[1739291577770,0.2828399,96595.0,96577.0,0.0517694]
[1739291577973,0.2828399,96595.0,96594.0,0.2085948]
[1739291578475,0.0758,96595.0,96594.0,0.2095948]
[1739291579063,0.0828,96595.0,96594.0,0.2095948]
[1739291580472,0.007,96595.0,96594.0,0.2095948]
[1739291580667,0.007,96595.0,96594.0,0.2901948]
[1739291580969,0.18487223,96620.0,96594.0,0.2901948]
[1739291580970,0.3608,96629.0,96594.0,1.5831528]
[1739291581173,0.15299422,96623.0,96616.0,0.3608]
[1739291581576,0.15247421,96623.0,96621.0,0.2069842]
[1739291581776,0.56793725,96622.0,96621.0,0.2069842]
[1739291582271,0.00015525,96622.0,96621.0,0.2069842]
[1739291582780,0.43667525,96622.0,96621.0,0.2069842]
[1739291582973,0.65065725,96622.0,96621.0,0.2079842]
[1739291583672,0.0517463,96621.0,96594.0,0.0022728]
[1739291583871,0.3608,96605.0,96604.0,0.2070206]
[1739291584071,0.4366,96605.0,96604.0,0.2070206]
[1739291585177,0.4366,96605.0,96604.0,0.2080206]
[1739291585383,0.43648,96605.0,96604.0,0.001]
[1739291586987,0.2070388,96596.0,96583.0,0.2070651]
[1739291587173,0.3608,96590.0,96587.0,0.2070568]
[1739291587374,0.07552,96589.0,96573.0,0.3608]
[1739291587679,0.5678683,96582.0,96569.0,0.0775]
[1739291587984,0.07556,96581.0,96572.0,0.2445683]
[1739291588172,0.07556,96581.0,96572.0,0.03748]
[1739291588375,0.07556,96581.0,96574.0,0.2070829]
[1739291588573,0.07556,96581.0,96572.0,0.03748]
[1739291588774,0.15856,96581.0,96572.0,0.03748]
[1739291590277,0.23916,96581.0,96572.0,0.03748]
[1739291591889,0.24116,96581.0,96572.0,0.03748]
[1739291592475,0.2070854,96574.0,96572.0,0.03748]
[1739291592673,0.3608,96573.0,96572.0,0.03748]
[1739291597283,3e-08,96577.0,96576.0,0.2070806]
[1739291597481,0.16465744,96594.0,96572.0,0.39828]
[1739291597691,0.24017744,96594.0,96589.0,0.2070517]
[1739291597884,0.0434285,96594.0,96593.0,0.2070442]
[1739291598087,5e-08,96599.0,96592.0,0.3608]
[1739291598284,5e-08,96599.0,96598.0,0.2070334]
[1739291599194,0.36080005,96599.0,96598.0,0.2070334]
[1739291599588,0.36080005,96599.0,96589.0,0.00015525]
[1739291599892,0.36580005,96599.0,96598.0,0.001]
[1739291601500,0.36080005,96599.0,96589.0,0.00015525]
[1739291601703,0.3608,96590.0,96589.0,0.00015525]
[1739291602897,0.3658,96590.0,96589.0,0.00015525]
[1739291603097,0.005,96590.0,96589.0,0.00015525]
[1739291603400,0.005,96590.0,96589.0,0.36095525]
[1739291605113,0.5728506,96590.0,96589.0,0.00015525]
[1739291605601,0.207084,96575.0,96570.0,0.2070929]
[1739291605806,0.07572,96574.0,96570.0,0.2070929]
[1739291606494,0.282805,96574.0,96572.0,0.2445685]
[1739291607194,0.07572,96574.0,96572.0,0.2445685]
[1739291608610,0.07572,96574.0,96573.0,0.207087]
[1739291609211,0.207087,96573.0,96572.0,0.03748]
[1739291609804,0.43652,96574.0,96559.0,0.00155337]
[1739291610008,0.3608,96563.0,96561.0,0.2071125]
[1739291611117,0.3608,96563.0,96559.0,0.00155337]
[1739291611314,0.5679149,96560.0,96559.0,0.00155337]
[1739291611905,0.5679149,96560.0,96554.0,0.2071272]
[1739291612117,0.2825978,96559.0,96554.0,0.2071272]
[1739291612512,0.2825978,96559.0,96556.0,0.2071226]
[1739291612708,0.2785978,96559.0,96556.0,0.2071226]
[1739291613218,0.2785978,96559.0,96544.0,0.079]
[1739291613219,0.07148,96559.0,96558.0,0.2071192]
[1739291614213,0.08293735,96559.0,96558.0,0.2071192]
[1739291614617,0.01145735,96559.0,96558.0,0.2071192]
[1739291614811,0.07532,96559.0,96554.0,0.005]
[1739291615718,0.07532,96559.0,96557.0,0.2071211]
[1739291615918,0.07532,96559.0,96558.0,0.004]
[1739291616422,0.07532,96559.0,96558.0,0.2071192]
[1739291616423,0.07524,96559.0,96558.0,0.2071192]
[1739291616821,0.07524,96559.0,96554.0,0.005]
[1739291617026,0.2071239,96556.0,96554.0,0.005]
[1739291618015,0.2071239,96556.0,96550.0,0.2071358]
[1739291618213,0.3568,96551.0,96550.0,0.2071358]
[1739291619413,0.3518,96551.0,96550.0,0.2071358]
[1739291619923,0.2071583,96540.0,96530.0,0.1857093]
[1739291620122,0.2071583,96540.0,96530.0,0.1849893]
[1739291620422,0.07536,96542.0,96539.0,0.2071587]
[1739291620623,0.3608,96540.0,96530.0,0.1849893]
[1739291621023,0.207156,96541.0,96534.0,0.2071692]
[1739291621225,0.2071649,96537.0,96534.0,0.2071692]
[1739291621425,0.5679649,96537.0,96534.0,0.2071692]
[1739291621823,0.2071649,96537.0,96534.0,0.2071692]
[1739291622128,0.001,96540.0,96527.0,0.5462195]
[1739291622331,0.2071503,96544.0,96538.0,0.2071614]
[1739291622523,0.0756,96543.0,96538.0,0.2071614]
[1739291623031,0.0756,96543.0,96540.0,0.2071575]
[1739291623423,0.0756,96543.0,96541.0,0.2071541]
[1739291624134,0.0756,96543.0,96534.0,0.207169]
[1739291624135,0.3608,96542.0,96534.0,0.207169]
[1739291624319,0.2071566,96541.0,96537.0,0.2071638]
[1739291625120,0.001,96544.0,96542.0,0.2071535]
[1739291625324,0.07556,96543.0,96542.0,0.2071535]
[1739291625628,0.001,96544.0,96542.0,0.2071535]
[1739291625824,0.00015533,96545.0,96544.0,0.2071493]
[1739291626227,1e-08,96545.0,96544.0,0.5679493]
[1739291628230,0.20814711,96545.0,96544.0,0.2071493]
[1739291628623,0.00100001,96545.0,96544.0,0.2071493]
[1739291629929,0.2071563,96541.0,96539.0,0.2071595]
[1739291630630,0.2071563,96541.0,96535.0,0.18560031]
[1739291630631,0.0863,96544.0,96541.0,0.2071543]
[1739291631031,0.0863,96544.0,96535.0,0.00015533]
[1739291631626,0.001,96541.0,96535.0,0.00015533]
[1739291631830,0.001,96541.0,96539.0,0.2071599]
[1739291632337,1e-08,96545.0,96544.0,0.2071492]
[1739291634028,1e-08,96545.0,96544.0,1.7071492]
[1739291635132,0.00100001,96545.0,96544.0,1.7071492]
[1739291635630,0.081,96568.0,96566.0,0.207101]
[1739291637423,0.00015533,96577.0,96561.0,0.3608]
[1739291637627,0.00015533,96577.0,96576.0,0.2070806]
[1739291637825,3e-08,96577.0,96576.0,0.2070806]
[1739291638126,3e-08,96577.0,96576.0,0.5070806]
[1739291638325,3e-08,96577.0,96572.0,0.3608]
[1739291638528,3e-08,96577.0,96566.0,0.001]
[1739291638729,3e-08,96577.0,96576.0,0.2070806]
[1739291639037,0.01324495,96577.0,96562.0,0.0868]
[1739291639229,0.01324495,96577.0,96556.0,0.00155338]
[1739291639230,0.2071042,96565.0,96560.0,0.207113]
[1739291639529,0.08096,96567.0,96556.0,0.00155338]
[1739291639742,0.08096,96567.0,96566.0,0.001]
[1739291640722,0.08096,96567.0,96565.0,0.2071026]
[1739291642028,0.2071076,96564.0,96562.0,0.001]
[1739291642231,0.3608,96563.0,96562.0,0.001]
[1739291642430,0.3608,96563.0,96557.0,0.00015533]
[1739291642637,0.2071133,96561.0,96557.0,0.00015533]
[1739291642934,0.3608,96563.0,96557.0,0.00015533]
[1739291643142,0.2061192,96558.0,96557.0,0.00015533]
[1739291643932,0.2061192,96558.0,96557.0,0.00115533]
[1739291645437,0.2061192,96558.0,96557.0,0.00015533]
[1739291646330,0.3608,96563.0,96557.0,0.00015533]
[1739291646634,0.2071191,96559.0,96557.0,0.00015533]
[1739291646828,0.0809,96558.0,96557.0,0.00015533]
[1739291647333,0.3608,96563.0,96560.0,0.2071138]
[1739291647535,0.08052,96562.0,96561.0,0.2071114]
[1739291647744,0.0806,96563.0,96562.0,0.2071106]
[1739291648935,0.0806,96563.0,96557.0,0.08305533]
[1739291649131,0.0806,96563.0,96557.0,0.00015533]
[1739291649332,0.207118,96559.0,96557.0,0.00015533]
[1739291649534,0.3608,96561.0,96557.0,0.00015533]
[1739291650239,0.2071175,96559.0,96557.0,0.00015533]
[1739291650537,0.0872,96558.0,96557.0,0.00015533]
[1739291650738,0.175,96558.0,96557.0,0.00015533]
[1739291651126,0.25588,96558.0,96557.0,0.00015533]
[1739291651741,0.4629992,96558.0,96557.0,0.00015533]
[1739291654639,0.47198837,96558.0,96557.0,0.00015533]
[1739291656036,0.47150837,96558.0,96557.0,0.00015533]
[1739291658138,0.62493709,96558.0,96557.0,0.00015533]
[1739291659436,0.62493709,96558.0,96557.0,1e-08]
[1739291661041,0.47102837,96558.0,96557.0,1e-08]
[1739291664251,0.26390917,96558.0,96530.0,0.1849893]
[1739291664451,0.5679669,96536.0,96529.0,0.2071808]
[1739291664644,0.08012,96535.0,96533.0,0.2071712]
[1739291666454,0.08112,96535.0,96533.0,0.2071712]
[1739291667953,0.001,96535.0,96533.0,0.2071712]
[1739291668447,0.001,96535.0,96534.0,0.2071707]
[1739291669660,0.15339671,96539.0,96538.0,0.2071621]
[1739291672652,0.07984,96540.0,96539.0,0.20716]
[1739291673162,0.00015533,96544.0,96527.0,0.1849893]
[1739291673367,0.00015533,96544.0,96543.0,0.2071514]
[1739291673661,0.07983533,96544.0,96543.0,0.2071514]
[1739291674457,0.08083533,96544.0,96543.0,0.2071514]
[1739291674658,0.00115533,96544.0,96543.0,0.2071514]
[1739291675462,0.00923808,96558.0,96557.0,0.2071213]
[1739291675655,0.15339671,96559.0,96558.0,0.2071192]
[1739291677363,0.2071049,96565.0,96553.0,0.2071291]
[1739291677556,0.39017026,96566.0,96563.0,0.2071076]
[1739291677961,0.39017026,96566.0,96550.0,0.0517837]
[1739291678165,0.39017026,96566.0,96564.0,0.2071053]
[1739291678465,0.3608,96565.0,96564.0,0.2071053]
[1739291679162,0.3608,96565.0,96555.0,0.48525545]
[1739291679462,0.3608,96565.0,96553.0,0.001]
[1739291679664,0.18306796,96566.0,96555.0,0.3608]
[1739291679974,0.39017056,96566.0,96563.0,0.207108]
[1739291680561,0.00015533,96568.0,96553.0,0.001]
[1739291680562,0.20725363,96568.0,96565.0,0.207104]
[1739291681162,0.3608,96567.0,96565.0,0.207104]
[1739291681361,0.5679018,96567.0,96565.0,0.207104]
[1739291681664,0.5679018,96567.0,96566.0,0.207102]
[1739291682257,0.6470618,96567.0,96566.0,0.207102]
[1739291683066,0.43996,96567.0,96566.0,0.207102]
[1739291684266,0.6470599,96567.0,96566.0,0.208102]
[1739291684968,0.43996,96567.0,96566.0,0.208102]
[1739291685565,0.43964,96567.0,96566.0,0.208102]
[1739291688064,0.6467399,96567.0,96566.0,0.001]
[1739291688573,0.6467399,96567.0,96566.0,0.2081021]
[1739291688767,0.6467399,96567.0,96566.0,0.001]
[1739291691170,0.6467399,96567.0,96566.0,0.208102]
[1739291692069,0.5678999,96567.0,96566.0,0.208102]
[1739291692262,0.07812,96567.0,96566.0,0.208102]
[1739291692866,0.00015533,96568.0,96567.0,0.2070999]
[1739291694168,0.00015533,96568.0,96567.0,1.7070999]
[1739291694566,0.00015533,96568.0,96567.0,0.2070999]
[1739291696669,3e-08,96568.0,96567.0,0.5070999]
[1739291697278,3e-08,96568.0,96567.0,0.2070999]
[1739291697860,0.36080003,96568.0,96567.0,0.2070999]
[1739291698065,0.36080003,96568.0,96547.0,0.2683893]
[1739291698261,0.36080003,96568.0,96553.0,0.2071286]
[1739291698467,0.2071024,96566.0,96564.0,0.2071061]
[1739291698672,0.2071024,96566.0,96565.0,0.2071042]
[1739291699875,0.36080003,96568.0,96564.0,0.2071063]
[1739291700170,0.36080003,96568.0,96558.0,0.12369545]
[1739291700370,0.36080003,96568.0,96567.0,0.2070999]
[1739291700679,3e-08,96568.0,96567.0,0.2070999]
[1739291700970,3e-08,96568.0,96567.0,0.5678999]
[1739291701368,3e-08,96568.0,96567.0,0.8678999]
[1739291701568,3e-08,96568.0,96567.0,0.5678999]
[1739291701766,3e-08,96568.0,96567.0,2.0678999]
[1739291702374,3e-08,96568.0,96567.0,0.5678999]
[1739291702684,3e-08,96568.0,96567.0,0.2070999]
[1739291703367,0.2071011,96567.0,96550.0,0.12369545]
[1739291703674,3e-08,96568.0,96550.0,0.12369545]
[1739291703675,0.3608,96562.0,96559.0,0.2071168]
[1739291703873,0.3608,96562.0,96549.0,0.00015533]
[1739291704274,0.3608,96562.0,96561.0,0.1849893]
[1739291705579,0.3618,96562.0,96561.0,0.1849893]
[1739291707373,0.3608,96562.0,96561.0,0.1859893]
[1739291707974,0.3608,96562.0,96561.0,0.2042893]
[1739291708580,0.1674,96566.0,96562.0,0.20711]
[1739291709168,0.0816,96566.0,96565.0,0.2071042]
[1739291709373,3e-08,96568.0,96565.0,0.2071042]
[1739291709572,3e-08,96568.0,96567.0,0.2070999]
[1739291710073,3e-08,96568.0,96562.0,0.00072]
[1739291710276,0.16640003,96568.0,96561.0,0.0193]
[1739291710471,0.3608,96562.0,96561.0,0.2264128]
[1739291711274,0.3608,96562.0,96561.0,0.0183]
[1739291711576,0.3608,96562.0,96551.0,0.207133]
[1739291711878,0.2061362,96551.0,96545.0,0.24491746]
[1739291712082,0.07804,96560.0,96546.0,0.3608]
[1739291712380,0.07804,96560.0,96559.0,0.2071171]
[1739291713677,0.07804,96560.0,96552.0,0.0872]
[1739291713678,0.00920684,96566.0,96565.0,0.2071042]
[1739291713876,0.07812,96566.0,96565.0,0.2071042]
[1739291714781,3e-08,96568.0,96567.0,0.2070999]
[1739291725490,3e-08,96568.0,96561.0,0.2071112]
[1739291725797,3e-08,96568.0,96562.0,0.2071101]
[1739291726187,0.07836,96567.0,96562.0,0.2071101]
[1739291726580,0.2854601,96567.0,96561.0,0.2071118]
[1739291726785,0.3608,96562.0,96561.0,0.2071118]
[1739291727295,0.07832,96566.0,96565.0,0.2071042]
[1739291728394,0.00600003,96568.0,96567.0,0.2070999]
[1739291729183,3e-08,96568.0,96567.0,0.2070999]
[1739291730496,3e-08,96568.0,96563.0,0.2071077]
[1739291730701,0.3608,96564.0,96563.0,0.2071085]
[1739291731892,0.43908,96564.0,96563.0,0.2071085]
[1739291732093,0.3608,96564.0,96563.0,0.2071085]
[1739291732287,0.3608,96564.0,96550.0,0.48517545]
[1739291732288,0.44208,96564.0,96550.0,0.00068]
[1739291732502,0.3608,96555.0,96550.0,0.2071363]
[1739291732687,0.2071364,96550.0,96540.0,0.2071568]
[1739291733086,0.2071364,96550.0,96543.0,0.2071514]
[1739291734690,0.2081364,96550.0,96543.0,0.2071514]
[1739291734890,0.2011364,96550.0,96543.0,0.2071514]
[1739291736195,0.2021364,96550.0,96549.0,0.00815533]
[1739291737599,0.2071621,96538.0,96521.0,0.3608]
[1739291737797,0.43908,96538.0,96521.0,0.3608]
[1739291737997,0.43908,96538.0,96535.0,0.2071673]
[1739291738596,0.0841,96537.0,96535.0,0.2071673]
[1739291739101,0.0781,96537.0,96535.0,0.2071673]
[1739291739305,0.0781,96537.0,96528.0,0.00015533]
[1739291739493,0.0781,96537.0,96535.0,0.2071681]
[1739291739698,0.44264001,96538.0,96528.0,0.00015533]
[1739291740007,0.44264001,96538.0,96537.0,0.2071643]
[1739291740200,0.44108,96538.0,96537.0,0.2071643]
[1739291741296,0.002,96538.0,96537.0,0.2071643]
[1739291741499,0.002,96537.0,96536.0,0.2071664]
[1739291742209,0.07816,96545.0,96544.0,0.2071492]
[1739291742398,0.00015533,96547.0,96535.0,0.12369545]
[1739291742598,0.00015533,96547.0,96546.0,0.207145]
[1739291745407,0.00115533,96547.0,96546.0,0.207145]
[1739291745712,0.00215533,96547.0,96546.0,0.207145]
[1739291749610,3e-08,96547.0,96546.0,0.207145]
[1739291749908,0.1585,96579.0,96567.0,0.2070999]
[1739291750209,0.1585,96579.0,96578.0,0.2070763]
[1739291750410,0.3608,96579.0,96560.0,0.12369545]
[1739291750606,0.3608,96565.0,96564.0,0.2071063]
[1739291752709,0.3678,96565.0,96564.0,0.2071063]
[1739291753214,0.3678,96565.0,96564.0,0.2081063]
[1739291754614,0.3678,96565.0,96564.0,0.001]
[1739291754811,0.5749042,96565.0,96564.0,0.001]
[1739291755020,0.2071128,96561.0,96560.0,0.00015533]
[1739291755210,0.207126,96555.0,96541.0,0.00155367]
[1739291755504,0.3608,96548.0,96547.0,0.2071416]
[1739291756115,0.3598,96548.0,96547.0,0.2071416]
[1739291757310,0.3608,96548.0,96547.0,0.2081416]
[1739291757506,0.3608,96548.0,96547.0,0.001]
[1739291758216,0.4442,96548.0,96547.0,0.001]
[1739291758517,0.4452,96548.0,96547.0,0.001]
[1739291759311,0.45426534,96548.0,96547.0,0.001]
[1739291759819,0.45426534,96548.0,96547.0,0.2081428]
[1739291760210,0.45426534,96548.0,96547.0,0.001]
[1739291762619,0.09446534,96548.0,96547.0,0.001]
[1739291763212,0.002,96548.0,96547.0,0.001]
[1739291763420,0.15309077,96561.0,96556.0,0.2071235]
[1739291763613,1e-08,96557.0,96556.0,1.7071235]
[1739291763913,1e-08,96557.0,96556.0,0.2071235]
[1739291764517,0.00100001,96557.0,96556.0,0.2071235]
[1739291765035,0.3608,96572.0,96554.0,1.50072]
[1739291765208,0.18306796,96573.0,96571.0,0.2070913]
[1739291765520,0.3608,96572.0,96571.0,0.2070913]
[1739291766220,0.07704,96579.0,96578.0,0.2070763]
[1739291766514,0.36095533,96581.0,96580.0,0.207072]
[1739291766921,0.00015533,96581.0,96580.0,0.207072]
[1739291767524,0.00942169,96581.0,96580.0,0.207072]
[1739291768020,0.02342169,96581.0,96580.0,0.207072]
[1739291769323,0.02742169,96581.0,96580.0,0.207072]
[1739291771818,0.02742169,96581.0,96562.0,0.00015533]
[1739291772019,0.3608,96567.0,96562.0,0.00015533]
[1739291772227,0.1664,96566.0,96565.0,0.2071042]
[1739291772423,0.2442,96566.0,96565.0,0.2071042]
[1739291773421,0.3608,96587.0,96563.0,0.3608]
[1739291773626,0.3608,96587.0,96580.0,0.207072]
[1739291773828,0.00942169,96581.0,96580.0,0.207072]
[1739291774827,0.00615533,96581.0,96580.0,0.207072]
[1739291775023,0.00615533,96581.0,96578.0,0.3608]
[1739291775024,0.18306796,96590.0,96589.0,0.2070527]
[1739291775229,0.19262508,96590.0,96589.0,0.2070527]
[1739291776515,0.19262508,96590.0,96589.0,0.5678527]
[1739291776722,0.19862508,96590.0,96589.0,0.5678527]
[1739291777333,0.20462508,96590.0,96589.0,0.5688527]
[1739291778224,0.01955712,96590.0,96589.0,0.5688527]
[1739291779132,0.01855712,96590.0,96589.0,0.5688527]
[1739291780333,0.01955712,96590.0,96589.0,0.5688527]
[1739291780523,0.01955712,96590.0,96589.0,0.2080527]
[1739291780718,0.02255712,96590.0,96589.0,0.2080527]
[1739291781530,0.01155712,96590.0,96589.0,0.2070527]
[1739291781726,0.02555712,96590.0,96589.0,0.2080527]
[1739291783727,0.01155712,96590.0,96589.0,0.2070527]
[1739291784033,0.02355712,96590.0,96589.0,0.2080527]
[1739291784637,0.02355712,96590.0,96578.0,0.4125689]
[1739291784638,0.0517675,96581.0,96528.0,0.0517955]
[1739291784835,0.0517675,96581.0,96521.0,0.3608]
[1739291784836,0.567917,96559.0,96530.0,0.12369545]
[1739291785054,0.644157,96559.0,96528.0,0.00972454]
[1739291785227,0.644157,96559.0,96558.0,0.18323072]
[1739291785434,0.43704,96559.0,96531.0,0.3608]
[1739291785736,0.5679364,96550.0,96531.0,0.5679766]
[1739291785934,0.5679364,96550.0,96544.0,0.00015533]
[1739291786134,0.5679364,96550.0,96549.0,0.24709209]
[1739291787040,0.5689364,96550.0,96549.0,0.25209209]
[1739291787241,0.6452164,96550.0,96549.0,0.25209209]
[1739291787433,0.43808,96550.0,96549.0,0.25209209]
[1739291787636,0.43908,96550.0,96549.0,0.25209209]
[1739291789537,0.43884,96550.0,96549.0,0.25209209]
[1739291789736,0.07804,96550.0,96549.0,0.25209209]
[1739291790846,0.07804,96550.0,96549.0,0.005]
[1739291794549,0.07804,96550.0,96544.0,1e-08]
[1739291794842,0.5679471,96545.0,96544.0,1e-08]
[1739291795046,0.3608,96545.0,96509.0,0.0861]
[1739291795350,0.3608,96528.0,96524.0,0.2071902]
[1739291795538,0.07576,96527.0,96509.0,0.0861]
[1739291795738,0.07576,96527.0,96525.0,0.2071894]
[1739291796540,0.06776,96527.0,96525.0,0.2071894]
[1739291796945,0.06776,96527.0,96516.0,0.00015533]
[1739291797149,0.12369545,96526.0,96519.0,0.2072011]
[1739291797450,0.12369545,96526.0,96516.0,0.00015533]
[1739291798239,0.3608,96519.0,96516.0,0.00015533]
[1739291798441,0.5680039,96519.0,96516.0,0.00015533]
[1739291798645,0.3608,96519.0,96516.0,0.00015533]
[1739291799885,0.3628,96519.0,96516.0,0.00015533]
[1739291800133,0.3638,96519.0,96516.0,0.00015533]
[1739291800945,0.37315422,96519.0,96516.0,0.00015533]
[1739291801451,0.37315422,96519.0,96500.0,3.4608]
[1739291801452,0.67315422,96519.0,96500.0,3.4608]
[1739291801661,0.3608,96501.0,96459.0,0.01040006]
[1739291801950,0.12369545,96470.0,96468.0,0.2073115]
[1739291802147,0.3608,96475.0,96467.0,0.31084]
[1739291802343,0.07664,96474.0,96473.0,0.2073011]
[1739291802646,0.00015542,96483.0,96474.0,0.31084]
[1739291802853,0.00015542,96483.0,96482.0,0.2072823]
[1739291803351,0.07675542,96483.0,96482.0,2.0181223]
[1739291804252,0.07775542,96483.0,96482.0,2.0181223]
[1739291804545,0.43855542,96483.0,96482.0,1.5]
[1739291804746,0.001,96483.0,96482.0,1.81084]
[1739291804956,0.001,96483.0,96482.0,1.89104]
[1739291805248,0.001,96483.0,96482.0,1.97304]
[1739291805551,0.07652,96493.0,96491.0,0.207263]
[1739291805750,0.00056001,96510.0,96492.0,0.31084]
[1739291805945,0.07656,96502.0,96501.0,0.2072409]
[1739291806148,0.07671542,96502.0,96501.0,0.2072409]
[1739291806343,0.07671542,96502.0,96501.0,0.5180809]
[1739291806545,0.07671542,96502.0,96501.0,2.0180809]
[1739291807355,0.001,96502.0,96501.0,1.81184]
[1739291807563,0.3608,96511.0,96501.0,1.81184]
[1739291807763,0.0817,96515.0,96510.0,0.31084]
[1739291808055,0.15814,96515.0,96513.0,0.2072147]
[1739291808949,0.15246576,96518.0,96501.0,1.68726119]
[1739291808950,0.00015542,96524.0,96523.0,0.2071943]
[1739291809255,0.00015542,96524.0,96523.0,0.5180343]
[1739291809656,0.07632,96538.0,96523.0,0.67164]
[1739291809841,0.07632,96538.0,96537.0,0.5180042]
[1739291810344,0.3608,96541.0,96537.0,0.5180042]
[1739291810345,0.3608,96541.0,96539.0,0.2071582]
[1739291810545,0.43716,96541.0,96540.0,0.31084]
[1739291810746,0.07636,96541.0,96540.0,0.31084]
[1739291811649,0.15246576,96548.0,96546.0,0.2071434]
[1739291811957,0.0762,96547.0,96546.0,0.2071434]
[1739291812155,0.0762,96547.0,96546.0,0.5179834]
[1739291812355,0.15246576,96548.0,96546.0,0.5179834]
[1739291812561,0.00015542,96550.0,96547.0,0.31084]
[1739291812860,0.00015542,96550.0,96538.0,0.54706119]
[1739291812861,0.07616,96559.0,96558.0,0.2071192]
[1739291813045,0.07616,96563.0,96562.0,0.2071102]
[1739291814250,0.43696,96563.0,96562.0,0.2081102]
[1739291815252,0.44396,96563.0,96562.0,0.2081102]
[1739291815659,0.44368,96563.0,96562.0,0.2081102]
[1739291815855,0.44368,96563.0,96562.0,0.001]
[1739291816457,0.2071278,96554.0,96553.0,0.00015533]
[1739291816654,0.5679278,96554.0,96553.0,0.00015533]
[1739291817858,0.5679278,96554.0,96553.0,0.00180469]
[1739291818558,0.57730937,96554.0,96541.0,0.2071552]
[1739291818754,0.3608,96544.0,96542.0,0.31084]
[1739291818962,0.07576,96543.0,96542.0,0.31084]
[1739291819357,0.07576,96543.0,96536.0,0.0824]
[1739291819563,0.07576,96543.0,96541.0,0.31084]
[1739291820459,0.07576,96543.0,96541.0,0.5179952]
[1739291820764,0.001,96543.0,96542.0,0.31084]
[1739291821065,0.07568,96550.0,96542.0,0.31084]
[1739291821268,0.00015533,96553.0,96552.0,0.207132]
[1739291821463,0.00015533,96553.0,96552.0,0.517972]
[1739291821973,0.07564,96573.0,96553.0,0.18574119]
[1739291822265,0.18574119,96570.0,96562.0,0.31084]
[1739291822467,0.07564,96573.0,96563.0,0.2071075]
[1739291822659,0.07564,96573.0,96562.0,0.31084]
[1739291822854,0.07564,96573.0,96572.0,0.31084]
[1739291823267,0.07664,96573.0,96572.0,0.31084]
[1739291824056,0.08764,96573.0,96572.0,0.31084]
[1739291824266,0.08764,96573.0,96572.0,0.09322582]
[1739291825068,0.012,96573.0,96572.0,0.53652582]
[1739291825274,1e-08,96577.0,96576.0,0.30030642]
[1739291825661,1e-08,96577.0,96576.0,0.31070648]
[1739291826472,0.01500001,96577.0,96576.0,0.31170648]
[1739291827170,0.01300001,96577.0,96576.0,0.31170648]
[1739291827561,0.37380001,96577.0,96576.0,0.31170648]
[1739291827870,0.58087841,96577.0,96576.0,0.001]
[1739291828076,0.37380001,96577.0,96564.0,0.2071053]
[1739291828372,0.3608,96566.0,96564.0,0.30033112]
[1739291828574,0.3608,96566.0,96558.0,0.08485533]
[1739291828867,0.2071136,96561.0,96558.0,0.00015533]
[1739291829067,0.207117,96559.0,96558.0,0.00015533]
[1739291829369,0.07544,96560.0,96533.0,0.0845]
[1739291829565,0.3608,96540.0,96539.0,0.09322582]
[1739291829760,0.3608,96540.0,96533.0,0.2916727]
[1739291829964,0.3608,96539.0,96528.0,0.0794]
[1739291830169,0.3608,96529.0,96528.0,0.0794]
[1739291830360,0.5679603,96539.0,96532.0,0.09322582]
[1739291830874,0.207165,96537.0,96532.0,0.09322582]
[1739291831358,0.001,96529.0,96528.0,0.0864]
[1739291831557,0.001,96529.0,96528.0,0.17962582]
[1739291832571,0.207165,96537.0,96532.0,0.007]
[1739291832874,0.2071728,96533.0,96532.0,0.007]
[1739291833064,0.3608,96537.0,96524.0,0.00015533]
[1739291833065,0.2071814,96529.0,96524.0,0.00015533]
[1739291833372,0.3468,96528.0,96524.0,0.00015533]
[1739291833670,0.3618,96529.0,96524.0,0.00015533]
[1739291834260,0.3628,96529.0,96527.0,0.0075539]
[1739291834467,0.3528,96529.0,96527.0,0.0075539]
[1739291835064,0.36227458,96529.0,96527.0,0.0075539]
[1739291835670,0.2071835,96528.0,96527.0,0.0075539]
[1739291836871,0.2081835,96528.0,96527.0,0.0015539]
[1739291837178,0.2101835,96528.0,96527.0,0.0015539]
[1739291838466,0.003,96528.0,96527.0,0.0015539]
[1739291838877,0.12882992,96528.0,96527.0,0.0015539]
[1739291841482,0.12870992,96528.0,96527.0,0.09477972]
[1739291841886,0.12870992,96528.0,96527.0,0.17567972]
[1739291842078,0.05338992,96528.0,96527.0,0.17567972]
[1739291842869,0.05338992,96528.0,96527.0,0.38286542]
[1739291843474,0.003,96528.0,96527.0,0.38286542]
[1739291844270,0.00965607,96539.0,96528.0,0.0517958]